fUST/lending_fUST_20250616
["ID","MTS","AMOUNT","RATE_DAILY","PERIOD"]
[366008786,1750013443297,-460.0,0.00019451,2]
[366008788,1750013443306,-460.0,0.00019451,2]
[366008790,1750013443315,-460.0,0.00019451,2]
[366008792,1750013443324,-460.0,0.00019451,2]
[366008794,1750013443334,-501.03,0.00019451,2]
[366008797,1750013443344,-232.607541,0.00019452,2]
[366008800,1750013443353,-232.607541,0.00019452,2]
[366008803,1750013443363,-461.99,0.00019452,2]
[366008806,1750013443373,-440.0,0.00019452,2]
[366008808,1750013443384,-555.67,0.00019452,2]
[366008810,1750013443393,-151.0,0.00019452,2]
[366008812,1750013443404,-460.0,0.00019452,2]
[366008814,1750013443414,-151.0,0.00019452,2]
[366008816,1750013443423,-460.0,0.00019452,2]
[366008818,1750013443431,-151.0,0.00019452,2]
[366008820,1750013443441,-460.0,0.00019452,2]
[366008822,1750013443450,-181.132213,0.00019452,2]
[366008824,1750013443459,-181.132213,0.00019452,2]
[366008826,1750013443468,-460.0,0.00019452,2]
[366008828,1750013443478,-248.71085363,0.00019452,2]
[366008830,1750013443487,-182.839794,0.00019452,2]
[366008832,1750013443496,-182.839794,0.00019452,2]
[366008834,1750013443505,-223.345584,0.00019452,2]
[366008836,1750013443515,-460.0,0.00019452,2]
[366008838,1750013443524,-151.0,0.00019452,2]
[366008840,1750013443533,-460.0,0.00019452,2]
[366008842,1750013443542,-460.0,0.00019452,2]
[366008844,1750013443551,-460.0,0.00019452,2]
[366008846,1750013443560,-460.0,0.00019452,2]
[366008848,1750013443570,-460.0,0.00019452,2]
[366008850,1750013443581,-460.0,0.00019452,2]
[366008851,1750013443590,-460.0,0.00019452,2]
[366008854,1750013443600,-460.0,0.00019452,2]
[366008856,1750013443609,-460.0,0.00019452,2]
[366008858,1750013443619,-377.10405973,0.00019452,2]
[366008860,1750013443630,-460.0,0.00019452,2]
[366008862,1750013443641,-460.0,0.00019452,2]
[366008864,1750013443652,-174.72,0.00019452,2]
[366008866,1750013443662,-460.0,0.00019452,2]
[366008868,1750013443672,-460.0,0.00019452,2]
[366008870,1750013443682,-460.0,0.00019452,2]
[366008872,1750013443692,-460.0,0.00019452,2]
[366008874,1750013443702,-460.0,0.00019452,2]
[366008876,1750013443711,-460.0,0.00019452,2]
[366008878,1750013443722,-833.32,0.00019452,2]
[366008880,1750013443732,-460.0,0.00019452,2]
[366008882,1750013443742,-151.0,0.00019452,2]
[366008884,1750013443752,-418.46,0.00019452,2]
[366008886,1750013443762,-460.0,0.00019452,2]
[366008888,1750013443772,-460.0,0.00019452,2]
[366008890,1750013443782,-460.0,0.00019452,2]
[366008892,1750013443792,-460.0,0.00019452,2]
[366008894,1750013443801,-460.0,0.00019452,2]
[366008896,1750013443811,-460.0,0.00019452,2]
[366008898,1750013443820,-460.0,0.00019452,2]
[366008900,1750013443829,-559.18,0.00019452,2]
[366008902,1750013443838,-460.0,0.00019452,2]
[366008904,1750013443848,-500.0,0.00019675,2]
[366008906,1750013443857,-500.0,0.00019675,2]
[366008908,1750013443867,-160.0,0.00019695,2]
[366008910,1750013443876,-211.69068759,0.00019707,2]
[366008912,1750013443889,-500.0,0.00019707,2]
[366008914,1750013443899,-521.56,0.00019725,2]
[366008916,1750013443908,-182.839794,0.00019725,2]
[366008918,1750013443918,-460.0,0.00019725,2]
[366008919,1750013443927,-182.839794,0.00019725,2]
[366008922,1750013443937,-151.0,0.00019725,2]
[366008924,1750013443947,-460.0,0.00019725,2]
[366008926,1750013443957,-460.0,0.00019725,2]
[366008928,1750013443966,-460.0,0.00019725,2]
[366008929,1750013443975,-501.03,0.00019725,2]
[366008931,1750013443985,-441.292325,0.00019726,2]
[366008933,1750013443994,-441.292325,0.00019726,2]
[366008935,1750013444003,-151.0,0.00019726,2]
[366008937,1750013444012,-460.0,0.00019726,2]
[366008939,1750013444022,-151.0,0.00019726,2]
[366008941,1750013444032,-460.0,0.00019726,2]
[366008943,1750013444041,-181.132213,0.00019726,2]
[366008945,1750013444051,-181.132213,0.00019726,2]
[366008947,1750013444060,-460.0,0.00019726,2]
[366008949,1750013444070,-460.0,0.00019726,2]
[366008951,1750013444080,-460.0,0.00019726,2]
[366008953,1750013444090,-460.0,0.00019726,2]
[366008955,1750013444100,-408.54539775,0.00019726,2]
[366008957,1750013444109,-264.24,0.00019726,2]
[366008959,1750013444119,-460.0,0.00019726,2]
[366008961,1750013444132,-475.7,0.00019726,2]
[366008963,1750013444141,-460.0,0.00019726,2]
[366008966,1750013444151,-460.0,0.00019726,2]
[366008968,1750013444160,-460.0,0.00019726,2]
[366008970,1750013444171,-460.0,0.00019726,2]
[366008972,1750013444181,-460.0,0.00019726,2]
[366008974,1750013444190,-460.0,0.00019726,2]
[366008976,1750013444200,-833.32,0.00019726,2]
[366008978,1750013444210,-460.0,0.00019726,2]
[366008980,1750013444220,-460.0,0.00019726,2]
[366008982,1750013444229,-460.0,0.00019726,2]
[366008984,1750013444239,-460.0,0.00019726,2]
[366008986,1750013444248,-460.0,0.00019726,2]
[366008988,1750013444257,-460.0,0.00019726,2]
[366008990,1750013444266,-559.18,0.00019726,2]
[366008992,1750013444276,-460.0,0.00019726,2]
[366008994,1750013444285,-521.56,0.00019999,2]
[366008996,1750013444295,-460.0,0.00019999,2]
[366008998,1750013444304,-460.0,0.00019999,2]
[366009000,1750013444314,-460.0,0.00019999,2]
[366009002,1750013444323,-460.0,0.00019999,2]
[366009004,1750013444333,-501.03,0.00019999,2]
[366009006,1750013444343,-232.607541,0.0002,2]
[366009008,1750013444352,-232.607541,0.0002,2]
[366009010,1750013444362,-151.0,0.0002,2]
[366009012,1750013444371,-460.0,0.0002,2]
[366009014,1750013444382,-182.839794,0.0002,2]
[366009016,1750013444392,-182.839794,0.0002,2]
[366009018,1750013444402,-222.96,0.0002,2]
[366009020,1750013444411,-151.0,0.0002,2]
[366009022,1750013444420,-460.0,0.0002,2]
[366009024,1750013444430,-460.0,0.0002,2]
[366009026,1750013444439,-460.0,0.0002,2]
[366009028,1750013444449,-460.0,0.0002,2]
[366009030,1750013444458,-470.7,0.0002,2]
[366009032,1750013444468,-528.74,0.0002,2]
[366009034,1750013444481,-460.0,0.0002,2]
[366009036,1750013444490,-460.0,0.0002,2]
[366009038,1750013444500,-833.32,0.0002,2]
[366009040,1750013444510,-460.0,0.0002,2]
[366009042,1750013444519,-151.0,0.0002,2]
[366009044,1750013444529,-460.0,0.0002,2]
[366009046,1750013444539,-460.0,0.0002,2]
[366009048,1750013444549,-460.0,0.0002,2]
[366009050,1750013444559,-460.0,0.0002,2]
[366009052,1750013444569,-460.0,0.0002,2]
[366009054,1750013444579,-15.21771484,0.0002,2]
[366010029,1750013625654,194.444366,0.00013699,2]
[366010037,1750013977161,400.0,0.00024657,120]
[366010069,1750014446105,-164.49226162,0.000182,2]
[366010070,1750014446126,-138.70971457,0.00018295,2]
[366010071,1750014449094,-1847.29028543,0.00018295,2]
[366010072,1750014449115,-151.60262721,0.000183,2]
[366010073,1750014449135,-358.79859,0.00018515,2]
[366010074,1750014449155,-432.07808888,0.000189,2]
[366010075,1750014449175,-381.02903937,0.00019005,2]
[366010076,1750014449195,-378.70283872,0.00019078,2]
[366010077,1750014449216,-300.0,0.00019175,2]
[366010078,1750014449239,-300.0,0.00019176,2]
[366010079,1750014449260,-500.0,0.00019176,2]
[366010080,1750014449281,-500.0,0.00019176,2]
[366010081,1750014449302,-442.26227898,0.00019176,2]
[366010082,1750014449324,-500.0,0.00019176,2]
[366010083,1750014449348,-500.0,0.00019176,2]
[366010084,1750014449370,-500.0,0.00019176,2]
[366010085,1750014449393,-500.0,0.00019176,2]
[366010086,1750014449412,-500.0,0.00019176,2]
[366010087,1750014449432,-589.93487034,0.00019176,2]
[366010088,1750014449454,-500.0,0.00019176,2]
[366010089,1750014449475,-500.0,0.00019176,2]
[366010090,1750014449495,-268.57286804,0.00019176,2]
[366010091,1750014449516,-300.0,0.00019176,2]
[366010092,1750014449535,-500.0,0.00019176,2]
[366010093,1750014449558,-500.0,0.00019176,2]
[366010094,1750014449578,-500.0,0.00019176,2]
[366010095,1750014449597,-159.36550042,0.00019176,2]
[366010096,1750014449616,-500.0,0.00019176,2]
[366010097,1750014449637,-172.3981802,0.00019176,2]
[366010098,1750014449658,-500.0,0.00019176,2]
[366010099,1750014449679,-310.8817589,0.00019176,2]
[366010100,1750014449700,-500.0,0.00019176,2]
[366010101,1750014449721,-1756.40180327,0.00019177,2]
[366010104,1750014572160,-288.05205925,0.000189,2]
[366010151,1750014632506,-289.03874918,0.00019177,2]
[366010153,1750014632516,-408.89247069,0.00019177,2]
[366010155,1750014632526,-500.0,0.00019177,2]
[366010157,1750014632535,-165.80691989,0.00019177,2]
[366010159,1750014632544,-460.0,0.00019178,2]
[366010161,1750014632553,-528.07125081,0.00019178,2]
[366010163,1750014632563,-502.83499785,0.00019178,2]
[366010165,1750014632572,-460.0,0.00019178,2]
[366010167,1750014632581,-460.0,0.00019178,2]
[366010169,1750014632590,-460.0,0.00019178,2]
[366010171,1750014632599,-460.0,0.00019178,2]
[366010173,1750014632608,-460.0,0.00019178,2]
[366010175,1750014632618,-460.0,0.00019178,2]
[366010177,1750014632627,-460.0,0.00019178,2]
[366010179,1750014632636,-577.1189379,0.00019178,2]
[366010181,1750014632646,-171.25077532,0.00019178,2]
[366010183,1750014632655,-460.0,0.00019178,2]
[366010185,1750014632664,-460.0,0.00019178,2]
[366010187,1750014632675,-460.0,0.00019178,2]
[366010189,1750014632684,-460.0,0.00019178,2]
[366010190,1750014632693,-460.0,0.00019178,2]
[366010191,1750014632702,-460.0,0.00019178,2]
[366010193,1750014632711,-460.0,0.00019178,2]
[366010195,1750014632720,-460.0,0.00019178,2]
[366010197,1750014632730,-460.0,0.00019178,2]
[366010199,1750014632739,-460.0,0.00019178,2]
[366010201,1750014632748,-460.0,0.00019178,2]
[366010203,1750014632757,-460.0,0.00019178,2]
[366010205,1750014632767,-460.0,0.00019178,2]
[366010207,1750014632776,-460.0,0.00019178,2]
[366010209,1750014632785,-460.0,0.00019178,2]
[366010211,1750014632794,-460.0,0.00019178,2]
[366010213,1750014632804,-500.0,0.00019178,2]
[366010215,1750014632813,-460.0,0.00019178,2]
[366010217,1750014632822,-460.0,0.00019178,2]
[366010219,1750014632832,-460.0,0.00019178,2]
[366010222,1750014632849,-460.0,0.00019178,2]
[366010224,1750014632861,-460.0,0.00019178,2]
[366010227,1750014632871,-460.0,0.00019178,2]
[366010229,1750014632881,-460.0,0.00019178,2]
[366010231,1750014632891,-460.0,0.00019178,2]
[366010233,1750014632901,-975.21,0.00019178,2]
[366010235,1750014632910,-460.0,0.00019178,2]
[366010237,1750014632920,-523.72,0.00019178,2]
[366010239,1750014632929,-686.16,0.00019178,2]
[366010241,1750014632939,-460.0,0.00019178,2]
[366010243,1750014632949,-460.0,0.00019178,2]
[366010245,1750014632959,-521.95,0.00019178,2]
[366010247,1750014632969,-460.0,0.00019178,2]
[366010250,1750014632979,-174.835307,0.00019178,2]
[366010252,1750014632988,-1349.16360151,0.00019178,2]
[366010254,1750014632998,-460.0,0.00019451,2]
[366010255,1750014633007,-460.0,0.00019451,2]
[366010257,1750014633018,-151.0,0.00019451,2]
[366010259,1750014633028,-151.0,0.00019451,2]
[366010261,1750014633038,-500.0,0.00019451,2]
[366010262,1750014633048,-414.43152153,0.00019451,2]
[366010263,1750014633058,-582.35339333,0.00019451,2]
[366010264,1750014633068,-500.0,0.00019451,2]
[366010265,1750014633079,-500.0,0.00019451,2]
[366010266,1750014633089,-151.0,0.00019451,2]
[366010267,1750014633099,-151.0,0.00019451,2]
[366010268,1750014633110,-151.0,0.00019451,2]
[366010269,1750014633120,-151.0,0.00019451,2]
[366010270,1750014633134,-151.0,0.00019451,2]
[366010271,1750014633144,-151.0,0.00019451,2]
[366010272,1750014633155,-152.64250514,0.00019451,2]
[366010273,1750014633167,-460.0,0.00019451,2]
[366010274,1750014633178,-246.30201214,0.00019451,2]
[366010275,1750014633188,-300.28477608,0.00019451,2]
[366010276,1750014633199,-151.0,0.00019451,2]
[366010277,1750014633210,-151.0,0.00019451,2]
[366010278,1750014633220,-460.0,0.00019451,2]
[366010279,1750014633231,-151.0,0.00019451,2]
[366010280,1750014633240,-564.0,0.00019451,2]
[366010281,1750014633250,-151.0,0.00019452,2]
[366010282,1750014633260,-151.0,0.00019452,2]
[366010283,1750014633270,-332.003201,0.00019452,2]
[366010284,1750014633279,-151.0,0.00019452,2]
[366010285,1750014633289,-460.0,0.00019452,2]
[366010286,1750014633300,-204.53612188,0.00019452,2]
[366010287,1750014633309,-460.0,0.00019452,2]
[366010288,1750014633319,-460.0,0.00019452,2]
[366010289,1750014633328,-460.0,0.00019452,2]
[366010290,1750014633338,-460.0,0.00019452,2]
[366010291,1750014633348,-460.0,0.00019452,2]
[366010292,1750014633358,-460.0,0.00019452,2]
[366010293,1750014633367,-460.0,0.00019452,2]
[366010294,1750014633377,-460.0,0.00019452,2]
[366010295,1750014633387,-460.0,0.00019452,2]
[366010296,1750014633396,-537.08039243,0.00019452,2]
[366010297,1750014633406,-460.0,0.00019452,2]
[366010298,1750014633416,-460.0,0.00019452,2]
[366010299,1750014633427,-460.0,0.00019452,2]
[366010300,1750014633437,-460.0,0.00019452,2]
[366010301,1750014633446,-460.0,0.00019452,2]
[366010302,1750014633456,-460.0,0.00019452,2]
[366010303,1750014633466,-460.0,0.00019452,2]
[366010304,1750014633476,-975.21,0.00019452,2]
[366010305,1750014633486,-460.0,0.00019452,2]
[366010306,1750014633496,-523.72,0.00019452,2]
[366010307,1750014633506,-686.16,0.00019452,2]
[366010308,1750014633516,-460.0,0.00019452,2]
[366010309,1750014633526,-460.0,0.00019452,2]
[366010310,1750014633536,-521.95,0.00019452,2]
[366010311,1750014633546,-151.0,0.00019478,2]
[366010312,1750014633556,-151.0,0.00019478,2]
[366010313,1750014633566,-151.0,0.00019478,2]
[366010314,1750014633575,-151.0,0.00019478,2]
[366010315,1750014633585,-209.3546536,0.00019478,2]
[366010316,1750014633595,-151.0,0.00019478,2]
[366010317,1750014633605,-151.0,0.00019478,2]
[366010318,1750014633614,-151.0,0.00019478,2]
[366010319,1750014633625,-151.0,0.00019506,2]
[366010320,1750014633635,-151.0,0.00019506,2]
[366010321,1750014633645,-151.0,0.00019506,2]
[366010322,1750014633655,-151.0,0.00019506,2]
[366010323,1750014633665,-151.0,0.00019533,2]
[366010324,1750014633676,-151.0,0.00019533,2]
[366010325,1750014633686,-151.0,0.00019533,2]
[366010326,1750014633696,-151.0,0.00019533,2]
[366010327,1750014633706,-151.0,0.00019561,2]
[366010328,1750014633716,-151.0,0.00019561,2]
[366010329,1750014633726,-151.0,0.00019561,2]
[366010330,1750014633735,-131.37032137,0.00019561,2]
[366010331,1750014633750,-19.62967863,0.00019561,2]
[366010332,1750014633760,-245.0,0.00019588,2]
[366010333,1750014633770,-245.0,0.00019588,2]
[366010334,1750014633780,-245.0,0.00019588,2]
[366010335,1750014633791,-245.0,0.00019588,2]
[366010336,1750014633800,-207.4,0.00019629,2]
[366010337,1750014633809,-5000.0,0.00019629,2]
[366010338,1750014633818,-4930.63174128,0.00019629,2]
[366010339,1750014633828,-500.0,0.00019629,2]
[366010340,1750014633838,-500.0,0.00019629,2]
[366010341,1750014633849,-151.0,0.00019629,2]
[366010342,1750014633858,-500.0,0.00019629,2]
[366010343,1750014633868,-500.0,0.00019629,2]
[366010344,1750014633877,-500.0,0.00019629,2]
[366010345,1750014633887,-500.0,0.00019629,2]
[366010346,1750014633896,-500.0,0.00019629,2]
[366010347,1750014633906,-500.0,0.00019629,2]
[366010348,1750014633915,-500.0,0.00019629,2]
[366010349,1750014633929,-500.0,0.00019629,2]
[366010350,1750014633939,-500.0,0.00019629,2]
[366010351,1750014633948,-500.0,0.00019629,2]
[366010352,1750014633959,-500.0,0.00019629,2]
[366010353,1750014633969,-500.0,0.00019629,2]
[366010354,1750014633979,-500.0,0.00019629,2]
[366010355,1750014633988,-460.0,0.00019725,2]
[366010356,1750014633999,-460.0,0.00019725,2]
[366010357,1750014634010,-460.0,0.00019725,2]
[366010358,1750014634020,-460.0,0.00019725,2]
[366010359,1750014634030,-564.0,0.00019725,2]
[366010360,1750014634040,-151.0,0.00019726,2]
[366010361,1750014634050,-540.0,0.00019726,2]
[366010362,1750014634059,-460.0,0.00019726,2]
[366010363,1750014634069,-460.0,0.00019726,2]
[366010364,1750014634079,-460.0,0.00019726,2]
[366010365,1750014634090,-460.0,0.00019726,2]
[366010366,1750014634101,-460.0,0.00019726,2]
[366010367,1750014634111,-460.0,0.00019726,2]
[366010368,1750014634122,-214.36718605,0.00019726,2]
[366010369,1750014634135,-460.0,0.00019726,2]
[366010370,1750014634145,-460.0,0.00019726,2]
[366010371,1750014634155,-460.0,0.00019726,2]
[366010372,1750014634166,-460.0,0.00019726,2]
[366010373,1750014634176,-460.0,0.00019726,2]
[366010374,1750014634186,-458.5652528,0.00019726,2]
[366010375,1750014634197,-975.21,0.00019726,2]
[366010376,1750014634207,-577.54352507,0.00019726,2]
[366010377,1750014634217,-523.72,0.00019726,2]
[366010378,1750014634226,-686.16,0.00019726,2]
[366010379,1750014634236,-521.95,0.00019726,2]
[366010380,1750014634247,-500.0,0.00019863,2]
[366010381,1750014634257,-500.0,0.000199,2]
[366010382,1750014634267,-500.0,0.000199,2]
[366010383,1750014634277,-500.0,0.00019912,2]
[366010384,1750014634287,-151.0,0.00019912,2]
[366010385,1750014634298,-500.0,0.00019938,2]
[366010386,1750014634308,-880.0,0.00019995,2]
[366010387,1750014634318,-151.0,0.00019999,2]
[366010388,1750014634328,-460.0,0.00019999,2]
[366010389,1750014634338,-151.0,0.00019999,2]
[366010390,1750014634347,-460.0,0.00019999,2]
[366010391,1750014634358,-151.0,0.00019999,2]
[366010392,1750014634368,-151.0,0.00019999,2]
[366010393,1750014634377,-460.0,0.00019999,2]
[366010394,1750014634387,-151.0,0.00019999,2]
[366010395,1750014634397,-460.0,0.00019999,2]
[366010396,1750014634407,-564.0,0.00019999,2]
[366010397,1750014634418,-153.73684,0.0002,2]
[366010398,1750014634430,-477.18,0.0002,2]
[366010399,1750014634439,-460.0,0.0002,2]
[366010400,1750014634449,-217.24886436,0.0002,2]
[366010401,1750014634459,-460.0,0.0002,2]
[366010402,1750014634469,-460.0,0.0002,2]
[366010403,1750014634479,-460.0,0.0002,2]
[366010404,1750014634488,-460.0,0.0002,2]
[366010405,1750014634498,-460.0,0.0002,2]
[366010406,1750014634507,-460.0,0.0002,2]
[366010407,1750014634517,-460.0,0.0002,2]
[366010408,1750014634527,-460.0,0.0002,2]
[366010409,1750014634537,-975.21,0.0002,2]
[366010410,1750014634547,-523.72,0.0002,2]
[366010411,1750014634557,-686.16,0.0002,2]
[366010412,1750014634566,-521.95,0.0002,2]
[366010413,1750014634576,-500.0,0.00020046,2]
[366010414,1750014634585,-5000.0,0.00020177,2]
[366010415,1750014634596,-194.444366,0.00020187,2]
[366010416,1750014634606,-160.0,0.00020254,2]
[366010417,1750014634615,-837.0,0.0002027,2]
[366010418,1750014634624,-460.0,0.00020272,2]
[366010419,1750014634634,-460.0,0.00020272,2]
[366010420,1750014634643,-460.0,0.00020272,2]
[366010421,1750014634653,-215.3,0.00020273,2]
[366010422,1750014634662,-460.0,0.00020273,2]
[366010423,1750014634672,-460.0,0.00020273,2]
[366010424,1750014634682,-460.0,0.00020273,2]
[366010425,1750014634691,-460.0,0.00020273,2]
[366010426,1750014634700,-460.0,0.00020273,2]
[366010427,1750014634710,-460.0,0.00020273,2]
[366010428,1750014634720,-151.0,0.00020273,2]
[366010429,1750014634729,-151.0,0.00020273,2]
[366010430,1750014634739,-151.0,0.00020273,2]
[366010431,1750014634748,-460.0,0.00020273,2]
[366010432,1750014634758,-460.0,0.00020273,2]
[366010433,1750014634767,-460.0,0.00020273,2]
[366010434,1750014634776,-460.0,0.00020273,2]
[366010435,1750014634786,-460.0,0.00020273,2]
[366010436,1750014634795,-151.0,0.00020273,2]
[366010437,1750014634804,-460.0,0.00020273,2]
[366010438,1750014634814,-975.21,0.00020273,2]
[366010439,1750014634823,-564.0,0.00020273,2]
[366010440,1750014634834,-523.72,0.00020273,2]
[366010441,1750014634843,-686.16,0.00020273,2]
[366010442,1750014634853,-1000.0,0.00020411,2]
[366010443,1750014634862,-1000.0,0.0002046,2]
[366010444,1750014634871,-159.834,0.00020461,2]
[366010445,1750014634882,-1000.0,0.00020485,2]
[366010446,1750014634893,-460.0,0.00020546,2]
[366010447,1750014634902,-460.0,0.00020546,2]
[366010448,1750014634913,-151.0,0.00020547,2]
[366010449,1750014634924,-460.0,0.00020547,2]
[366010450,1750014634933,-460.0,0.00020547,2]
[366010451,1750014634943,-485.11,0.00020547,2]
[366010452,1750014634953,-460.0,0.00020547,2]
[366010453,1750014634963,-460.0,0.00020547,2]
[366010454,1750014634973,-460.0,0.00020547,2]
[366010455,1750014634982,-151.0,0.00020547,2]
[366010456,1750014634992,-151.0,0.00020547,2]
[366010457,1750014635002,-460.0,0.00020547,2]
[366010458,1750014635011,-424.79,0.00020547,2]
[366010459,1750014635021,-460.0,0.00020547,2]
[366010460,1750014635031,-460.0,0.00020547,2]
[366010461,1750014635040,-460.0,0.00020547,2]
[366010462,1750014635050,-460.0,0.00020547,2]
[366010463,1750014635060,-975.21,0.00020547,2]
[366010464,1750014635070,-564.0,0.00020547,2]
[366010465,1750014635080,-523.72,0.00020547,2]
[366010466,1750014635090,-686.16,0.00020547,2]
[366010467,1750014635099,-151.0,0.00020555,2]
[366010468,1750014635109,-1000.0,0.00020594,2]
[366010469,1750014635119,-313.0,0.00020599,2]
[366010470,1750014635132,-5000.0,0.00020725,2]
[366010471,1750014635142,-151.0,0.0002082,2]
[366010472,1750014635151,-151.0,0.0002082,2]
[366010473,1750014635162,-252.35,0.0002082,2]
[366010474,1750014635172,-460.0,0.0002082,2]
[366010475,1750014635182,-182.839794,0.00020821,2]
[366010476,1750014635191,-182.839794,0.00020821,2]
[366010477,1750014635203,-460.0,0.00020821,2]
[366010478,1750014635212,-460.0,0.00020821,2]
[366010479,1750014635222,-460.0,0.00020821,2]
[366010480,1750014635231,-460.0,0.00020821,2]
[366010481,1750014635365,-460.0,0.00020821,2]
[366010482,1750014635376,-460.0,0.00020821,2]
[366010483,1750014635386,-460.0,0.00020821,2]
[366010484,1750014635396,-460.0,0.00020821,2]
[366010485,1750014635407,-460.0,0.00020821,2]
[366010486,1750014635417,-460.0,0.00020821,2]
[366010487,1750014635427,-975.21,0.00020821,2]
[366010488,1750014635436,-564.0,0.00020821,2]
[366010489,1750014635446,-523.72,0.00020821,2]
[366010490,1750014635455,-686.16,0.00020821,2]
[366010491,1750014635464,-151.0,0.00020822,2]
[366010492,1750014635474,-151.0,0.00020822,2]
[366010493,1750014635483,-420.0,0.00020898,2]
[366010494,1750014635493,-151.0,0.000209,2]
[366010495,1750014635502,-151.0,0.000209,2]
[366010496,1750014635511,-459.07321948,0.000209,4]
[366010497,1750014635521,-180.15,0.00020921,3]
[366010498,1750014635531,-2467.567339,0.00020931,3]
[366010499,1750014635541,-720.6,0.00020988,3]
[366010500,1750014635552,-540.45,0.00020988,3]
[366010501,1750014635561,-837.0,0.00020994,2]
[366010502,1750014635570,-215.0738,0.00020998,2]
[366010503,1750014635580,-459.07321924,0.00021038,4]
[366010504,1750014635589,-151.0,0.00021038,2]
[366010505,1750014635598,-360.3,0.00021085,3]
[366010506,1750014635608,-500.0,0.00021093,2]
[366010507,1750014635617,-160.0,0.00021093,2]
[366010508,1750014635627,-460.0,0.00021094,2]
[366010509,1750014635636,-151.0,0.00021095,2]
[366010510,1750014635645,-471.812949,0.00021095,2]
[366010511,1750014635655,-471.812949,0.00021095,2]
[366010512,1750014635664,-151.0,0.00021095,2]
[366010513,1750014635675,-460.0,0.00021095,2]
[366010514,1750014635685,-460.0,0.00021095,2]
[366010515,1750014635694,-589.12114961,0.00021095,2]
[366010516,1750014635704,-460.0,0.00021095,2]
[366010517,1750014635713,-460.0,0.00021095,2]
[366010518,1750014635723,-460.0,0.00021095,2]
[366010519,1750014635733,-586.0,0.00021095,2]
[366010520,1750014635742,-460.0,0.00021095,2]
[366010521,1750014635751,-460.0,0.00021095,2]
[366010522,1750014635762,-975.21,0.00021095,2]
[366010523,1750014635771,-564.0,0.00021095,2]
[366010524,1750014635781,-523.72,0.00021095,2]
[366010525,1750014635790,-686.16,0.00021095,2]
[366010526,1750014635800,-600.0,0.00021164,2]
[366010527,1750014635809,-459.07321924,0.00021176,4]
[366010528,1750014635819,-2617.0,0.00021183,2]
[366010529,1750014635829,-639.0,0.000212,2]
[366010530,1750014635838,-151.0,0.00021228,2]
[366010531,1750014635848,-151.0,0.00021228,2]
[366010532,1750014635857,-837.0,0.00021271,2]
[366010533,1750014635867,-2617.0,0.00021278,2]
[366010534,1750014635877,-459.07321924,0.00021314,5]
[366010535,1750014635887,-837.0,0.00021342,2]
[366010536,1750014635896,-460.0,0.00021368,2]